[Event "Titled Tuesday Blitz August 17 2021"]
[White "Mirzoev, Azer"]
[Black "Grafil, Franz Robert"]
[WhiteFideId "13400304"]
[BlackFideId "5205298"]
[WhiteElo "2525"]
[BlackElo "2211"]
[Result "1/2-1/2"]
[Round "03"]
[TimeControl "180+1"]
[Date "2021.08.17"]
[WhiteClock "0:00:10"]
[BlackClock "0:00:08"]

1. d4 {[%clk 0:03:00]}  Nf6 {[%clk 0:03:00]} 2. Nf3 {[%clk 0:03:00]}  c5 {[%clk 0:02:59]} 3. d5 {[%clk 0:03:00]}  b5 {[%clk 0:03:00]} 4. Bg5 {[%clk 0:02:59]}  Qb6 {[%clk 0:02:59]} 5. c3 {[%clk 0:02:32]}  h6 {[%clk 0:02:53]} 6. Bxf6 {[%clk 0:02:31]}  Qxf6 {[%clk 0:02:53]} 7. e4 {[%clk 0:02:31]}  a6 {[%clk 0:02:35]} 8. Nbd2 {[%clk 0:02:30]}  d6 {[%clk 0:02:35]} 9. a4 {[%clk 0:02:29]}  b4 {[%clk 0:02:34]} 10. cxb4 {[%clk 0:02:30]}  cxb4 {[%clk 0:02:30]} 11. Qb3 {[%clk 0:02:26]}  Nd7 {[%clk 0:02:26]} 12. a5 {[%clk 0:02:18]}  g5 {[%clk 0:02:23]} 13. Qxb4 {[%clk 0:02:07]}  Bg7 {[%clk 0:02:08]} 14. Nc4 {[%clk 0:02:03]}  O-O {[%clk 0:01:53]} 15. Be2 {[%clk 0:02:01]}  Rb8 {[%clk 0:01:47]} 16. Qa3 {[%clk 0:01:57]}  Nc5 {[%clk 0:01:44]} 17. Nfd2 {[%clk 0:01:56]}  Qd4 {[%clk 0:01:39]} 18. O-O {[%clk 0:01:50]}  Nxe4 {[%clk 0:01:26]} 19. Nxe4 {[%clk 0:01:50]}  Qxe4 {[%clk 0:01:27]} 20. Rfe1 {[%clk 0:01:51]}  Qxd5 {[%clk 0:01:24]} 21. Nb6 {[%clk 0:01:50]}  Qd4 {[%clk 0:01:19]} 22. Bf1 {[%clk 0:01:31]}  Qxb2 {[%clk 0:00:56]} 23. Qxb2 {[%clk 0:01:30]}  Bxb2 {[%clk 0:00:57]} 24. Ra2 {[%clk 0:01:31]}  Bf6 {[%clk 0:00:56]} 25. Nxc8 {[%clk 0:01:25]}  Rfxc8 {[%clk 0:00:55]} 26. Bxa6 {[%clk 0:01:26]}  Rc5 {[%clk 0:00:50]} 27. Bf1 {[%clk 0:01:20]}  Bc3 {[%clk 0:00:36]} 28. Rxe7 {[%clk 0:01:19]}  Bxa5 {[%clk 0:00:29]} 29. g3 {[%clk 0:01:17]}  Kf8 {[%clk 0:00:14]} 30. Rd7 {[%clk 0:01:17]}  Rd8 {[%clk 0:00:13]} 31. Rb7 {[%clk 0:01:15]}  Bc3 {[%clk 0:00:09]} 32. Raa7 {[%clk 0:01:07]}  Rf5 {[%clk 0:00:09]} 33. Bd3 {[%clk 0:01:07]}  Rf6 {[%clk 0:00:09]} 34. Kg2 {[%clk 0:01:03]}  Bd4 {[%clk 0:00:09]} 35. Ra2 {[%clk 0:01:02]}  Bc5 {[%clk 0:00:09]} 36. g4 {[%clk 0:00:58]}  Re8 {[%clk 0:00:10]} 37. Bf5 {[%clk 0:00:57]}  Re7 {[%clk 0:00:10]} 38. Rb8+ {[%clk 0:00:57]}  Kg7 {[%clk 0:00:10]} 39. Raa8 {[%clk 0:00:55]}  Rxf5 {[%clk 0:00:10]} 40. gxf5 {[%clk 0:00:53]}  Kf6 {[%clk 0:00:11]} 41. Rh8 {[%clk 0:00:51]}  Re2 {[%clk 0:00:10]} 42. Rxh6+ {[%clk 0:00:50]}  Kxf5 {[%clk 0:00:11]} 43. h4 {[%clk 0:00:31]}  Rxf2+ {[%clk 0:00:09]} 44. Kg3 {[%clk 0:00:28]}  gxh4+ {[%clk 0:00:08]} 45. Rxh4 {[%clk 0:00:24]}  Rf1 {[%clk 0:00:08]} 46. Rh5+ {[%clk 0:00:24]}  Ke6 {[%clk 0:00:07]} 47. Re8+ {[%clk 0:00:23]}  Kd7 {[%clk 0:00:08]} 48. Re2 {[%clk 0:00:23]}  Rf6 {[%clk 0:00:08]} 49. Kg4 {[%clk 0:00:22]}  Kc6 {[%clk 0:00:08]} 50. Rf5 {[%clk 0:00:21]}  Rxf5 {[%clk 0:00:05]} 51. Kxf5 {[%clk 0:00:22]}  d5 {[%clk 0:00:04]} 52. Rh2 {[%clk 0:00:22]}  d4 {[%clk 0:00:04]} 53. Ke4 {[%clk 0:00:21]}  Kb5 {[%clk 0:00:03]} 54. Kd3 {[%clk 0:00:21]}  f6 {[%clk 0:00:03]} 55. Rf2 {[%clk 0:00:20]}  Kc6 {[%clk 0:00:02]} 56. Rxf6+ {[%clk 0:00:20]}  Kd5 {[%clk 0:00:03]} 57. Rf5+ {[%clk 0:00:20]}  Kd6 {[%clk 0:00:03]} 58. Rh5 {[%clk 0:00:21]}  Bb6 {[%clk 0:00:03]} 59. Kc4 {[%clk 0:00:22]}  Kc7 {[%clk 0:00:03]} 60. Rh7+ {[%clk 0:00:22]}  Kc6 {[%clk 0:00:04]} 61. Rh6+ {[%clk 0:00:22]}  Kc7 {[%clk 0:00:04]} 62. Kb5 {[%clk 0:00:22]}  Ba7 {[%clk 0:00:04]} 63. Rc6+ {[%clk 0:00:21]}  Kb7 {[%clk 0:00:05]} 64. Rd6 {[%clk 0:00:21]}  Kc7 {[%clk 0:00:04]} 65. Rd5 {[%clk 0:00:21]}  Kb7 {[%clk 0:00:05]} 66. Rd7+ {[%clk 0:00:21]}  Ka8 {[%clk 0:00:05]} 67. Ka6 {[%clk 0:00:20]}  Bb8 {[%clk 0:00:05]} 68. Rd8 {[%clk 0:00:17]}  d3 {[%clk 0:00:05]} 69. Kb6 {[%clk 0:00:16]}  d2 {[%clk 0:00:06]} 70. Rxd2 {[%clk 0:00:16]}  Ba7+ {[%clk 0:00:07]} 71. Ka6 {[%clk 0:00:16]}  Bb8 {[%clk 0:00:06]} 72. Rd3 {[%clk 0:00:16]}  Bc7 {[%clk 0:00:06]} 73. Rc3 {[%clk 0:00:14]}  Bb8 {[%clk 0:00:06]} 74. Rc2 {[%clk 0:00:14]}  Ba7 {[%clk 0:00:06]} 75. Rc7 {[%clk 0:00:13]}  Bb8 {[%clk 0:00:07]} 76. Rh7 {[%clk 0:00:13]}  Bg3 {[%clk 0:00:06]} 77. Ra7+ {[%clk 0:00:13]}  Kb8 {[%clk 0:00:06]} 78. Rg7 {[%clk 0:00:13]}  Be5 {[%clk 0:00:06]} 79. Re7 {[%clk 0:00:13]}  Bg3 {[%clk 0:00:06]} 80. Re6 {[%clk 0:00:13]}  Bh2 {[%clk 0:00:06]} 81. Rh6 {[%clk 0:00:12]}  Bg3 {[%clk 0:00:06]} 82. Rg6 {[%clk 0:00:12]}  Bf4 {[%clk 0:00:06]} 83. Rg8+ {[%clk 0:00:12]}  Kc7 {[%clk 0:00:07]} 84. Ra8 {[%clk 0:00:12]}  Kd6 {[%clk 0:00:07]} 85. Kb5 {[%clk 0:00:11]}  Ke5 {[%clk 0:00:07]} 86. Re8+ {[%clk 0:00:11]}  Kd4 {[%clk 0:00:07]} 87. Kc6 {[%clk 0:00:11]}  Be5 {[%clk 0:00:06]} 88. Re6 {[%clk 0:00:10]}  Ke4 {[%clk 0:00:06]} 89. Kd7 {[%clk 0:00:10]}  Kd5 {[%clk 0:00:06]} 90. Re7 {[%clk 0:00:10]}  Bd6 {[%clk 0:00:06]} 91. Rh7 {[%clk 0:00:10]}  Be5 {[%clk 0:00:06]} 92. Rh5 {[%clk 0:00:10]}  Ke4 {[%clk 0:00:06]} 93. Ke6 {[%clk 0:00:11]}  Bf4 {[%clk 0:00:07]} 94. Rh4 {[%clk 0:00:11]}  Kf3 {[%clk 0:00:07]} 95. Kf5 {[%clk 0:00:11]}  Bg3 {[%clk 0:00:07]} 96. Rh3 {[%clk 0:00:11]}  Kg2 {[%clk 0:00:07]} 97. Kg4 {[%clk 0:00:11]}  Bh2 {[%clk 0:00:08]} 98. Ra3 {[%clk 0:00:11]}  Kh1 {[%clk 0:00:07]} 99. Ra2 {[%clk 0:00:11]}  Bg1 {[%clk 0:00:08]} 100. Kg3 {[%clk 0:00:11]}  Bb6 {[%clk 0:00:06]} 101. Kh3 {[%clk 0:00:11]}  Bc5 {[%clk 0:00:06]} 102. Rc2 {[%clk 0:00:10]}  Bb6 {[%clk 0:00:06]} 103. Rc6 {[%clk 0:00:11]}  Ba7 {[%clk 0:00:06]} 104. Rc7 {[%clk 0:00:11]}  Bb6 {[%clk 0:00:06]} 105. Rb7 {[%clk 0:00:11]}  Bc5 {[%clk 0:00:07]} 106. Rb1+ {[%clk 0:00:11]}  Bg1 {[%clk 0:00:06]} 107. Rb3 {[%clk 0:00:11]}  Bc5 {[%clk 0:00:05]} 108. Rc3 {[%clk 0:00:11]}  Bb6 {[%clk 0:00:05]} 109. Rc6 {[%clk 0:00:11]}  Ba7 {[%clk 0:00:06]} 110. Rc7 {[%clk 0:00:11]}  Bb6 {[%clk 0:00:06]} 111. Rb7 {[%clk 0:00:11]}  Bc5 {[%clk 0:00:06]} 112. Rb5 {[%clk 0:00:11]}  Ba7 {[%clk 0:00:06]} 113. Ra5 {[%clk 0:00:10]}  Bb6 {[%clk 0:00:06]} 114. Ra6 {[%clk 0:00:10]}  Bc5 {[%clk 0:00:07]} 115. Ra5 {[%clk 0:00:10]}  Bb6 {[%clk 0:00:07]} 116. Ra6 {[%clk 0:00:10]}  Bc5 {[%clk 0:00:07]} 117. Ra5 {[%clk 0:00:10]}  Bb6 {[%clk 0:00:08]} 1/2-1/2


[Site "https://www.chess.com"]

[Event "Titled Tuesday Blitz August 17 2021"]
[White "Mitrabha, Guha"]
[Black "Awatramani, Janak"]
[WhiteFideId "5057000"]
[BlackFideId "2608359"]
[WhiteElo "2334"]
[BlackElo "2881"]
[Result "0-1"]
[Round "03"]
[TimeControl "180+1"]
[Date "2021.08.17"]
[WhiteClock "0:00:04"]
[BlackClock "0:00:15"]

1. Nf3 {[%clk 0:02:36]}  d5 {[%clk 0:02:56]} 2. c4 {[%clk 0:02:35]}  e6 {[%clk 0:02:55]} 3. d4 {[%clk 0:02:35]}  Nf6 {[%clk 0:02:56]} 4. g3 {[%clk 0:02:36]}  b6 {[%clk 0:02:55]} 5. Bg2 {[%clk 0:02:36]}  Bb7 {[%clk 0:02:55]} 6. O-O {[%clk 0:02:36]}  dxc4 {[%clk 0:02:56]} 7. Qc2 {[%clk 0:02:36]}  b5 {[%clk 0:02:56]} 8. a4 {[%clk 0:02:36]}  a6 {[%clk 0:02:56]} 9. Nc3 {[%clk 0:02:23]}  c6 {[%clk 0:02:40]} 10. e4 {[%clk 0:02:17]}  Nbd7 {[%clk 0:02:38]} 11. e5 {[%clk 0:02:13]}  Nd5 {[%clk 0:02:37]} 12. Bg5 {[%clk 0:02:13]}  Qc8 {[%clk 0:02:26]} 13. Ne4 {[%clk 0:02:11]}  h6 {[%clk 0:02:25]} 14. Bd2 {[%clk 0:02:07]}  c5 {[%clk 0:02:20]} 15. Nd6+ {[%clk 0:01:21]}  Bxd6 {[%clk 0:02:20]} 16. exd6 {[%clk 0:01:22]}  O-O {[%clk 0:02:15]} 17. axb5 {[%clk 0:01:17]}  axb5 {[%clk 0:02:15]} 18. Rxa8 {[%clk 0:01:18]}  Qxa8 {[%clk 0:02:14]} 19. dxc5 {[%clk 0:01:18]}  Nxc5 {[%clk 0:02:11]} 20. Ne5 {[%clk 0:01:15]}  Rd8 {[%clk 0:02:05]} 21. Bxh6 {[%clk 0:00:57]}  gxh6 {[%clk 0:02:02]} 22. Nxf7 {[%clk 0:00:57]}  Kxf7 {[%clk 0:01:42]} 23. Qh7+ {[%clk 0:00:57]}  Kf6 {[%clk 0:01:43]} 24. Bxd5 {[%clk 0:00:49]}  exd5 {[%clk 0:00:56]} 25. Qe7+ {[%clk 0:00:15]}  Kg6 {[%clk 0:00:55]} 26. f4 {[%clk 0:00:15]}  Rf8 {[%clk 0:00:40]} 27. g4 {[%clk 0:00:13]}  Rf7 {[%clk 0:00:37]} 28. f5+ {[%clk 0:00:11]}  Kg7 {[%clk 0:00:37]} 29. f6+ {[%clk 0:00:06]}  Kg8 {[%clk 0:00:36]} 30. Qe5 {[%clk 0:00:07]}  Ne4 {[%clk 0:00:31]} 31. Qf5 {[%clk 0:00:06]}  Qf8 {[%clk 0:00:26]} 32. Qg6+ {[%clk 0:00:06]}  Kh8 {[%clk 0:00:26]} 33. d7 {[%clk 0:00:02]}  Rxd7 {[%clk 0:00:20]} 34. f7 {[%clk 0:00:02]}  Rd6 {[%clk 0:00:19]} 35. Qf5 {[%clk 0:00:02]}  Rf6 {[%clk 0:00:19]} 36. Qe5 {[%clk 0:00:02]}  Kg7 {[%clk 0:00:18]} 37. h4 {[%clk 0:00:02]}  Kxf7 {[%clk 0:00:13]} 38. Rxf6+ {[%clk 0:00:01]}  Nxf6 {[%clk 0:00:14]} 39. g5 {[%clk 0:00:01]}  hxg5 {[%clk 0:00:15]} 40. hxg5 {[%clk 0:00:02]}  Qe7 {[%clk 0:00:15]} 41. Qf5 {[%clk 0:00:02]}  Qe3+ {[%clk 0:00:15]} 42. Kh2 {[%clk 0:00:03]}  Qe2+ {[%clk 0:00:15]} 43. Kg3 {[%clk 0:00:04]}  Qg4+ {[%clk 0:00:14]} 44. Qxg4 {[%clk 0:00:04]}  Nxg4 {[%clk 0:00:15]} 45. Kxg4 {[%clk 0:00:04]} 0-1


[Site "https://www.chess.com"]

[Event "Titled Tuesday Blitz August 17 2021"]
[White "Moreira, Ronaldo Alonso"]
[Black "Yordanov, Nikolay Plamenov"]
[WhiteFideId "2110547"]
[BlackFideId "2907445"]
[WhiteElo "2037"]
[BlackElo "2248"]
[Result "1-0"]
[Round "03"]
[TimeControl "180+1"]
[Date "2021.08.18"]
[WhiteClock "0:00:05"]
[BlackClock "0:00:19"]

1. d4 {[%clk 0:03:00]}  Nf6 {[%clk 0:02:59]} 2. c4 {[%clk 0:03:00]}  g6 {[%clk 0:03:00]} 3. Nc3 {[%clk 0:03:00]}  Bg7 {[%clk 0:03:00]} 4. e4 {[%clk 0:02:59]}  d6 {[%clk 0:03:01]} 5. Nf3 {[%clk 0:02:59]}  O-O {[%clk 0:03:01]} 6. h3 {[%clk 0:02:59]}  e5 {[%clk 0:03:01]} 7. d5 {[%clk 0:02:59]}  a5 {[%clk 0:03:00]} 8. Bg5 {[%clk 0:02:59]}  Na6 {[%clk 0:02:59]} 9. Rg1 {[%clk 0:02:54]}  Qe8 {[%clk 0:02:59]} 10. g4 {[%clk 0:02:48]}  Nd7 {[%clk 0:02:59]} 11. a3 {[%clk 0:02:34]}  f6 {[%clk 0:02:47]} 12. Be3 {[%clk 0:02:32]}  b6 {[%clk 0:02:33]} 13. Be2 {[%clk 0:02:15]}  Bb7 {[%clk 0:02:32]} 14. h4 {[%clk 0:02:14]}  Ndc5 {[%clk 0:02:32]} 15. h5 {[%clk 0:02:07]}  g5 {[%clk 0:02:29]} 16. Nd2 {[%clk 0:01:55]}  h6 {[%clk 0:02:29]} 17. Kf1 {[%clk 0:01:51]}  c6 {[%clk 0:02:25]} 18. dxc6 {[%clk 0:01:36]}  Bxc6 {[%clk 0:02:24]} 19. f3 {[%clk 0:01:33]}  Rb8 {[%clk 0:02:14]} 20. Kg2 {[%clk 0:01:26]}  Ne6 {[%clk 0:02:14]} 21. Nd5 {[%clk 0:00:36]}  Bxd5 {[%clk 0:02:11]} 22. cxd5 {[%clk 0:00:34]}  Nec7 {[%clk 0:02:09]} 23. Nc4 {[%clk 0:00:28]}  Qd7 {[%clk 0:02:07]} 24. Nxb6 {[%clk 0:00:19]}  Qe7 {[%clk 0:01:55]} 25. Nc4 {[%clk 0:00:19]}  Nc5 {[%clk 0:01:49]} 26. Qc2 {[%clk 0:00:12]}  Nb3 {[%clk 0:01:46]} 27. Rab1 {[%clk 0:00:11]}  Nd4 {[%clk 0:01:46]} 28. Bxd4 {[%clk 0:00:10]}  exd4 {[%clk 0:01:47]} 29. Nxa5 {[%clk 0:00:10]}  Rbc8 {[%clk 0:01:38]} 30. Nc6 {[%clk 0:00:09]}  Qd7 {[%clk 0:01:38]} 31. b4 {[%clk 0:00:09]}  f5 {[%clk 0:01:33]} 32. gxf5 {[%clk 0:00:07]}  Be5 {[%clk 0:01:33]} 33. b5 {[%clk 0:00:06]}  Qf7 {[%clk 0:01:29]} 34. b6 {[%clk 0:00:05]}  Qxh5 {[%clk 0:01:20]} 35. bxc7 {[%clk 0:00:04]}  Qh2+ {[%clk 0:01:17]} 36. Kf1 {[%clk 0:00:04]}  Rxc7 {[%clk 0:01:17]} 37. Bd3 {[%clk 0:00:02]}  Qh3+ {[%clk 0:01:13]} 38. Qg2 {[%clk 0:00:03]}  Qh5 {[%clk 0:01:14]} 39. Qg4 {[%clk 0:00:03]}  Qf7 {[%clk 0:01:12]} 40. Rh1 {[%clk 0:00:03]}  Kg7 {[%clk 0:01:10]} 41. Qh5 {[%clk 0:00:04]}  Qf6 {[%clk 0:01:09]} 42. Qg6+ {[%clk 0:00:02]}  Qxg6 {[%clk 0:01:08]} 43. fxg6 {[%clk 0:00:02]}  Rxf3+ {[%clk 0:01:09]} 44. Ke2 {[%clk 0:00:03]}  Re3+ {[%clk 0:01:09]} 45. Kd2 {[%clk 0:00:03]}  Bf4 {[%clk 0:01:10]} 46. Kc2 {[%clk 0:00:03]}  Kxg6 {[%clk 0:01:06]} 47. Rb8 {[%clk 0:00:03]}  Kg7 {[%clk 0:01:04]} 48. Re8 {[%clk 0:00:02]}  Rg3 {[%clk 0:01:03]} 49. Re7+ {[%clk 0:00:01]}  Kf6 {[%clk 0:01:02]} 50. Rxc7 {[%clk 0:00:01]}  Rg2+ {[%clk 0:01:02]} 51. Kb3 {[%clk 0:00:02]}  Rd2 {[%clk 0:01:01]} 52. Kc4 {[%clk 0:00:02]}  Ra2 {[%clk 0:00:59]} 53. Nb4 {[%clk 0:00:02]}  Rxa3 {[%clk 0:00:58]} 54. Kb5 {[%clk 0:00:02]}  Bd2 {[%clk 0:00:57]} 55. Bc4 {[%clk 0:00:03]}  Bc3 {[%clk 0:00:55]} 56. Rc6 {[%clk 0:00:03]}  Ke5 {[%clk 0:00:55]} 57. Rc7 {[%clk 0:00:03]}  Kxe4 {[%clk 0:00:51]} 58. Re7+ {[%clk 0:00:03]}  Kf4 {[%clk 0:00:50]} 59. Rxh6 {[%clk 0:00:04]}  g4 {[%clk 0:00:50]} 60. Rf6+ {[%clk 0:00:04]}  Kg3 {[%clk 0:00:49]} 61. Rg7 {[%clk 0:00:04]}  d3 {[%clk 0:00:49]} 62. Bxd3 {[%clk 0:00:03]}  Bxf6 {[%clk 0:00:49]} 63. Rg6 {[%clk 0:00:03]}  Be5 {[%clk 0:00:46]} 64. Bf5 {[%clk 0:00:03]}  Rb3 {[%clk 0:00:44]} 65. Rxg4+ {[%clk 0:00:02]}  Kf2 {[%clk 0:00:45]} 66. Kc4 {[%clk 0:00:02]}  Rb1 {[%clk 0:00:43]} 67. Be6 {[%clk 0:00:02]}  Kf3 {[%clk 0:00:39]} 68. Rg6 {[%clk 0:00:01]}  Rc1+ {[%clk 0:00:39]} 69. Kb5 {[%clk 0:00:01]}  Rc5+ {[%clk 0:00:39]} 70. Kb6 {[%clk 0:00:01]}  Bc3 {[%clk 0:00:38]} 71. Nc6 {[%clk 0:00:02]}  Rc4 {[%clk 0:00:34]} 72. Rg8 {[%clk 0:00:02]}  Ke3 {[%clk 0:00:33]} 73. Rf8 {[%clk 0:00:03]}  Bg7 {[%clk 0:00:30]} 74. Rf7 {[%clk 0:00:03]}  Bc3 {[%clk 0:00:29]} 75. Kc7 {[%clk 0:00:03]}  Bb4 {[%clk 0:00:28]} 76. Kd7 {[%clk 0:00:04]}  Bc5 {[%clk 0:00:28]} 77. Rf5 {[%clk 0:00:04]}  Ra4 {[%clk 0:00:28]} 78. Rh5 {[%clk 0:00:04]}  Ra8 {[%clk 0:00:25]} 79. Rh3+ {[%clk 0:00:04]}  Kf4 {[%clk 0:00:25]} 80. Rh1 {[%clk 0:00:03]}  Kg5 {[%clk 0:00:25]} 81. Rf1 {[%clk 0:00:03]}  Rh8 {[%clk 0:00:24]} 82. Rb1 {[%clk 0:00:03]}  Rh7+ {[%clk 0:00:24]} 83. Ne7 {[%clk 0:00:03]}  Kf6 {[%clk 0:00:24]} 84. Rf1+ {[%clk 0:00:03]}  Kg5 {[%clk 0:00:24]} 85. Rf3 {[%clk 0:00:04]}  Bd4 {[%clk 0:00:24]} 86. Rf5+ {[%clk 0:00:04]}  Kh4 {[%clk 0:00:22]} 87. Kxd6 {[%clk 0:00:05]}  Bf2 {[%clk 0:00:18]} 88. Rf7 {[%clk 0:00:05]}  Kg3 {[%clk 0:00:19]} 89. Rxh7 {[%clk 0:00:05]}  Bc5+ {[%clk 0:00:19]} 90. Kxc5 {[%clk 0:00:05]} 1-0


[Site "https://www.chess.com"]

[Event "Titled Tuesday Blitz August 17 2021"]
[White "Navalgund, Niranjan"]
[Black "Giroyan, Gary"]
[WhiteFideId "5030854"]
[BlackFideId "680281"]
[WhiteElo "2290"]
[BlackElo "2420"]
[Result "1-0"]
[Round "03"]
[TimeControl "180+1"]
[Date "2021.08.18"]
[WhiteClock "0:00:20"]
[BlackClock "0:00:04"]

1. Nf3 {[%clk 0:03:00]}  Nf6 {[%clk 0:02:58]} 2. g3 {[%clk 0:02:50]}  g6 {[%clk 0:02:52]} 3. Bg2 {[%clk 0:02:49]}  Bg7 {[%clk 0:02:52]} 4. O-O {[%clk 0:02:40]}  O-O {[%clk 0:02:52]} 5. d3 {[%clk 0:02:38]}  b6 {[%clk 0:02:39]} 6. Ne5 {[%clk 0:02:33]}  c6 {[%clk 0:02:39]} 7. c4 {[%clk 0:02:32]}  Bb7 {[%clk 0:02:38]} 8. Nc3 {[%clk 0:02:31]}  d6 {[%clk 0:02:38]} 9. Nf3 {[%clk 0:02:28]}  Nbd7 {[%clk 0:02:38]} 10. Rb1 {[%clk 0:02:23]}  c5 {[%clk 0:02:34]} 11. a3 {[%clk 0:02:22]}  e5 {[%clk 0:02:24]} 12. b4 {[%clk 0:02:21]}  Re8 {[%clk 0:02:21]} 13. Bb2 {[%clk 0:02:20]}  e4 {[%clk 0:02:19]} 14. Nd2 {[%clk 0:02:14]}  Rb8 {[%clk 0:02:00]} 15. Ndxe4 {[%clk 0:02:12]}  Nxe4 {[%clk 0:02:00]} 16. Nxe4 {[%clk 0:02:11]}  Bxb2 {[%clk 0:01:58]} 17. Rxb2 {[%clk 0:02:12]}  Bxe4 {[%clk 0:01:58]} 18. dxe4 {[%clk 0:02:12]}  Ne5 {[%clk 0:01:52]} 19. Qd5 {[%clk 0:02:08]}  Qf6 {[%clk 0:01:52]} 20. Rd2 {[%clk 0:02:05]}  cxb4 {[%clk 0:01:46]} 21. axb4 {[%clk 0:02:04]}  Rbc8 {[%clk 0:01:34]} 22. Rc1 {[%clk 0:01:49]}  b5 {[%clk 0:01:11]} 23. Qxd6 {[%clk 0:01:36]}  Qxd6 {[%clk 0:01:06]} 24. Rxd6 {[%clk 0:01:25]}  Rxc4 {[%clk 0:00:59]} 25. Rxc4 {[%clk 0:01:22]}  bxc4 {[%clk 0:01:00]} 26. f4 {[%clk 0:01:22]}  Ng4 {[%clk 0:01:00]} 27. Rc6 {[%clk 0:01:01]}  Rd8 {[%clk 0:00:59]} 28. Bf3 {[%clk 0:00:59]}  Ne3 {[%clk 0:00:44]} 29. e5 {[%clk 0:00:47]}  Rb8 {[%clk 0:00:27]} 30. Kf2 {[%clk 0:00:45]}  Nd1+ {[%clk 0:00:27]} 31. Ke1 {[%clk 0:00:45]}  Nb2 {[%clk 0:00:28]} 32. Bd5 {[%clk 0:00:40]}  Rxb4 {[%clk 0:00:23]} 33. Rc7 {[%clk 0:00:38]}  a5 {[%clk 0:00:23]} 34. Bxf7+ {[%clk 0:00:38]}  Kf8 {[%clk 0:00:23]} 35. Bd5 {[%clk 0:00:35]}  a4 {[%clk 0:00:22]} 36. e6 {[%clk 0:00:35]}  Rb6 {[%clk 0:00:15]} 37. Kd2 {[%clk 0:00:24]}  a3 {[%clk 0:00:14]} 38. Ra7 {[%clk 0:00:22]}  Rd6 {[%clk 0:00:08]} 39. e4 {[%clk 0:00:22]}  h5 {[%clk 0:00:05]} 40. Rxa3 {[%clk 0:00:20]}  Nd3 {[%clk 0:00:03]} 41. Ra8+ {[%clk 0:00:19]}  Ke7 {[%clk 0:00:03]} 42. Ra7+ {[%clk 0:00:20]}  Ke8 {[%clk 0:00:03]} 43. Kc3 {[%clk 0:00:18]}  Nc5 {[%clk 0:00:03]} 44. Kxc4 {[%clk 0:00:17]}  Nxe6 {[%clk 0:00:03]} 45. e5 {[%clk 0:00:16]}  Rb6 {[%clk 0:00:03]} 46. Ra8+ {[%clk 0:00:15]}  Ke7 {[%clk 0:00:03]} 47. Ra7+ {[%clk 0:00:15]}  Ke8 {[%clk 0:00:04]} 48. Bxe6 {[%clk 0:00:16]}  Rxe6 {[%clk 0:00:03]} 49. Kd5 {[%clk 0:00:17]}  Rb6 {[%clk 0:00:04]} 50. Rg7 {[%clk 0:00:16]}  Rb2 {[%clk 0:00:03]} 51. Ke6 {[%clk 0:00:16]}  Kf8 {[%clk 0:00:02]} 52. Rxg6 {[%clk 0:00:15]}  Rxh2 {[%clk 0:00:03]} 53. Kf5 {[%clk 0:00:16]}  Rb2 {[%clk 0:00:03]} 54. Rg5 {[%clk 0:00:16]}  Kf7 {[%clk 0:00:04]} 55. Rxh5 {[%clk 0:00:16]}  Rb3 {[%clk 0:00:05]} 56. Rh7+ {[%clk 0:00:16]}  Kg8 {[%clk 0:00:05]} 57. Ra7 {[%clk 0:00:17]}  Rxg3 {[%clk 0:00:05]} 58. Kf6 {[%clk 0:00:17]}  Rf3 {[%clk 0:00:04]} 59. f5 {[%clk 0:00:18]}  Rc3 {[%clk 0:00:04]} 60. Ra8+ {[%clk 0:00:18]}  Kh7 {[%clk 0:00:04]} 61. e6 {[%clk 0:00:19]}  Rc7 {[%clk 0:00:04]} 62. Rd8 {[%clk 0:00:19]}  Rb7 {[%clk 0:00:04]} 63. Rd7+ {[%clk 0:00:20]} 1-0


[Site "https://www.chess.com"]

[Event "Titled Tuesday Blitz August 17 2021"]
[White "Nesterov, Arseniy"]
[Black "Perrine, Dalton"]
[WhiteFideId "24198455"]
[BlackFideId "2048434"]
[WhiteElo "2477"]
[BlackElo "2464"]
[Result "1-0"]
[Round "03"]
[TimeControl "180+1"]
[Date "2021.08.17"]
[WhiteClock "0:00:11"]
[BlackClock "0:00:01"]

1. d4 {[%clk 0:03:00]}  d5 {[%clk 0:02:58]} 2. c4 {[%clk 0:03:00]}  c6 {[%clk 0:02:59]} 3. Nf3 {[%clk 0:03:00]}  Nf6 {[%clk 0:02:59]} 4. e3 {[%clk 0:02:59]}  e6 {[%clk 0:02:59]} 5. Nc3 {[%clk 0:02:58]}  Nbd7 {[%clk 0:02:55]} 6. Bd3 {[%clk 0:02:57]}  dxc4 {[%clk 0:02:55]} 7. Bxc4 {[%clk 0:02:58]}  b5 {[%clk 0:02:55]} 8. Be2 {[%clk 0:02:57]}  Bd6 {[%clk 0:02:51]} 9. O-O {[%clk 0:02:55]}  Bb7 {[%clk 0:02:47]} 10. e4 {[%clk 0:02:50]}  b4 {[%clk 0:02:45]} 11. e5 {[%clk 0:02:45]}  bxc3 {[%clk 0:02:43]} 12. bxc3 {[%clk 0:02:45]}  Nd5 {[%clk 0:02:15]} 13. exd6 {[%clk 0:02:31]}  Nxc3 {[%clk 0:02:14]} 14. Qd3 {[%clk 0:02:28]}  Nxe2+ {[%clk 0:02:13]} 15. Qxe2 {[%clk 0:02:29]}  O-O {[%clk 0:02:03]} 16. Rb1 {[%clk 0:02:23]}  Nb6 {[%clk 0:01:53]} 17. Ba3 {[%clk 0:02:19]}  Re8 {[%clk 0:01:29]} 18. Rfc1 {[%clk 0:02:12]}  f6 {[%clk 0:01:04]} 19. Bc5 {[%clk 0:02:08]}  Qd7 {[%clk 0:00:43]} 20. h3 {[%clk 0:01:46]}  Nd5 {[%clk 0:00:31]} 21. a4 {[%clk 0:01:32]}  a5 {[%clk 0:00:30]} 22. Qd2 {[%clk 0:01:22]}  Ba6 {[%clk 0:00:27]} 23. Ne1 {[%clk 0:01:13]}  e5 {[%clk 0:00:20]} 24. dxe5 {[%clk 0:01:10]}  Rxe5 {[%clk 0:00:21]} 25. Nf3 {[%clk 0:00:59]}  Re2 {[%clk 0:00:18]} 26. Qxa5 {[%clk 0:00:58]}  g5 {[%clk 0:00:11]} 27. Re1 {[%clk 0:00:50]}  Nf4 {[%clk 0:00:07]} 28. Nd4 {[%clk 0:00:43]}  Ra2 {[%clk 0:00:05]} 29. Re7 {[%clk 0:00:40]}  Nxh3+ {[%clk 0:00:06]} 30. gxh3 {[%clk 0:00:17]}  Qxh3 {[%clk 0:00:06]} 31. Re3 {[%clk 0:00:15]}  Qh4 {[%clk 0:00:03]} 32. Rg3 {[%clk 0:00:12]}  Qf4 {[%clk 0:00:03]} 33. Ne6 {[%clk 0:00:10]}  Qe5 {[%clk 0:00:01]} 34. Re1 {[%clk 0:00:11]} 1-0


[Site "https://www.chess.com"]

[Event "Titled Tuesday Blitz August 17 2021"]
[White "Nguyen, Hong Anh"]
[Black "Preotu, Razvan"]
[WhiteFideId "12406732"]
[BlackFideId "2613280"]
[WhiteElo "1974"]
[BlackElo "2407"]
[Result "0-1"]
[Round "03"]
[TimeControl "180+1"]
[Date "2021.08.17"]
[WhiteClock "0:01:30"]
[BlackClock "0:01:55"]

1. d4 {[%clk 0:02:50]}  Nf6 {[%clk 0:02:59]} 2. c4 {[%clk 0:02:50]}  g6 {[%clk 0:03:00]} 3. Nf3 {[%clk 0:02:50]}  Bg7 {[%clk 0:02:59]} 4. g3 {[%clk 0:02:50]}  c6 {[%clk 0:02:55]} 5. Bg2 {[%clk 0:02:49]}  d5 {[%clk 0:02:55]} 6. O-O {[%clk 0:02:48]}  O-O {[%clk 0:02:55]} 7. Nc3 {[%clk 0:02:42]}  Ne4 {[%clk 0:02:53]} 8. Nxe4 {[%clk 0:02:39]}  dxe4 {[%clk 0:02:53]} 9. Ng5 {[%clk 0:02:37]}  Qxd4 {[%clk 0:02:37]} 10. Qxd4 {[%clk 0:02:28]}  Bxd4 {[%clk 0:02:38]} 11. Nxe4 {[%clk 0:02:28]}  Be6 {[%clk 0:02:37]} 12. Bh6 {[%clk 0:02:21]}  Rd8 {[%clk 0:02:26]} 13. Rfd1 {[%clk 0:01:52]}  Na6 {[%clk 0:02:24]} 14. Rac1 {[%clk 0:01:44]}  Bxb2 {[%clk 0:02:21]} 15. Rxd8+ {[%clk 0:01:41]}  Rxd8 {[%clk 0:02:22]} 16. Rb1 {[%clk 0:01:41]}  Bg7 {[%clk 0:01:54]} 17. Bxg7 {[%clk 0:01:30]}  Kxg7 {[%clk 0:01:55]} 0-1


[Site "https://www.chess.com"]